[Event "Live Chess"]
[Site "Chess.com"]
[Date "2023.05.21"]
[Round "-"]
[White "chessfiction"]
[Black "diana21strabt"]
[Result "1-0"]
[WhiteElo "2350"]
[BlackElo "1718"]
[TimeControl "300"]
[EndTime "0:13:20 PDT"]
[Termination "chessfiction won by checkmate"]

1. e4 {[%clk 0:04:58.8]} 1... d5 {[%clk 0:04:59]} 2. d4 {[%clk 0:04:58.7]} 2...
dxe4 {[%clk 0:04:57.8]} 3. f3 {[%clk 0:04:58.4]} 3... exf3 {[%clk 0:04:56.5]} 4.
Nxf3 {[%clk 0:04:58.3]} 4... Bg4 {[%clk 0:04:54.9]} 5. Bc4 {[%clk 0:04:57.5]}
5... e6 {[%clk 0:04:52.9]} 6. O-O {[%clk 0:04:56.7]} 6... Nf6 {[%clk 0:04:51.7]}
7. Kh1 {[%clk 0:04:55]} 7... Nc6 {[%clk 0:04:50.4]} 8. Nc3 {[%clk 0:04:52]} 8...
Bxf3 {[%clk 0:04:49.1]} 9. Qxf3 {[%clk 0:04:51.9]} 9... Nxd4 {[%clk 0:04:45.5]}
10. Qxb7 {[%clk 0:04:48.9]} 10... Nxc2 {[%clk 0:04:43.2]} 11. Bb5+ {[%clk
0:04:47.4]} 11... Ke7 {[%clk 0:04:30]} 12. b3 {[%clk 0:04:32.4]} 12... Rb8
{[%clk 0:04:22.6]} 13. Qxa7 {[%clk 0:04:27.5]} 13... Ra8 {[%clk 0:04:08]} 14.
Qc5+ {[%clk 0:04:07.8]} 14... Qd6 {[%clk 0:04:06.1]} 15. Nd5+ {[%clk 0:04:04.9]}
15... exd5 {[%clk 0:03:58.8]} 16. Qxc2 {[%clk 0:04:01.5]} 16... Kd8 {[%clk
0:03:49.8]} 17. Bf4 {[%clk 0:03:58.6]} 17... Qc5 {[%clk 0:03:44.9]} 18. Qe2
{[%clk 0:03:53.7]} 18... Bd6 {[%clk 0:03:39]} 19. Rac1 {[%clk 0:03:45.1]} 19...
Qb6 {[%clk 0:03:37.3]} 20. Bg5 {[%clk 0:03:41.5]} 20... Rxa2 {[%clk 0:03:28.4]}
21. Qxa2 {[%clk 0:03:35.9]} 21... Qxb5 {[%clk 0:03:27.3]} 22. Qa8+ {[%clk
0:03:30.6]} 22... Kd7 {[%clk 0:03:22.6]} 23. Qxh8 {[%clk 0:03:29.8]} 23... Ne4
{[%clk 0:03:20.9]} 24. Rxf7+ {[%clk 0:03:26.5]} 24... Ke6 {[%clk 0:03:17.8]} 25.
Qg8 {[%clk 0:03:13.2]} 25... Nxg5 {[%clk 0:03:13.4]} 26. Re1+ {[%clk 0:03:00.2]}
26... Ne4 {[%clk 0:03:10.9]} 27. Rf3+ {[%clk 0:02:40.3]} 27... Kd7 {[%clk
0:03:05.4]} 28. Qxg7+ {[%clk 0:02:35.3]} 28... Kc6 {[%clk 0:03:04.1]} 29. Qxh7
{[%clk 0:02:12.2]} 29... Qb4 {[%clk 0:02:51.9]} 30. Rc1+ {[%clk 0:02:10]} 30...
Kb6 {[%clk 0:02:46.2]} 31. Qd7 {[%clk 0:02:02.9]} 31... Qd4 {[%clk 0:02:32.9]}
32. Qc6+ {[%clk 0:01:58.5]} 32... Ka7 {[%clk 0:02:19.6]} 33. b4 {[%clk 0:01:46]}
33... Qb6 {[%clk 0:01:52.4]} 34. Ra3+ {[%clk 0:01:43.4]} 34... Kb8 {[%clk
0:01:46]} 35. Ra8# {[%clk 0:01:42.1]} 1-0

[Event "Live Chess"]
[Site "Chess.com"]
[Date "2023.05.21"]
[Round "-"]
[White "mirandaasilva"]
[Black "Jo1ts"]
[Result "1-0"]
[WhiteElo "1636"]
[BlackElo "826"]
[TimeControl "300"]
[EndTime "0:13:30 PDT"]
[Termination "mirandaasilva won by resignation"]

1. e4 {[%clk 0:04:52.8]} 1... e5 {[%clk 0:04:57.9]} 2. Bc4 {[%clk 0:04:52]} 2...
Nc6 {[%clk 0:04:52.1]} 3. Nf3 {[%clk 0:04:50.6]} 3... d6 {[%clk 0:04:49.5]} 4.
a4 {[%clk 0:04:48.7]} 4... f5 {[%clk 0:04:48.5]} 5. d3 {[%clk 0:04:45]} 5...
fxe4 {[%clk 0:04:46.1]} 6. Ng5 {[%clk 0:04:40.5]} 6... h6 {[%clk 0:04:38.5]} 7.
Nf7 {[%clk 0:04:38.8]} 7... Qg5 {[%clk 0:04:16.6]} 8. Nxg5 {[%clk 0:04:30.2]}
8... hxg5 {[%clk 0:04:15.4]} 9. Bxg5 {[%clk 0:04:27.4]} 9... Be7 {[%clk
0:04:13.4]} 10. Bxe7 {[%clk 0:04:23.2]} 10... Kxe7 {[%clk 0:04:13.3]} 11. O-O
{[%clk 0:04:18.7]} 11... Nf6 {[%clk 0:04:13.2]} 1-0

[Event "Live Chess"]
[Site "Chess.com"]
[Date "2023.05.21"]
[Round "-"]
[White "DaveL5678"]
[Black "WilliamofOrange16th"]
[Result "0-1"]
[WhiteElo "1006"]
[BlackElo "1817"]
[TimeControl "300"]
[EndTime "0:13:59 PDT"]
[Termination "WilliamofOrange16th won by checkmate"]

1. e4 {[%clk 0:04:57.2]} 1... d6 {[%clk 0:04:59.1]} 2. d4 {[%clk 0:04:54.8]}
2... Nf6 {[%clk 0:04:58.6]} 3. Nc3 {[%clk 0:04:45.8]} 3... Nbd7 {[%clk
0:04:54.9]} 4. Bd3 {[%clk 0:04:36.7]} 4... e5 {[%clk 0:04:54.2]} 5. d5 {[%clk
0:04:31]} 5... c6 {[%clk 0:04:50.6]} 6. dxc6 {[%clk 0:04:28.7]} 6... bxc6 {[%clk
0:04:49.3]} 7. f3 {[%clk 0:04:27.7]} 7... Be7 {[%clk 0:04:48.4]} 8. Nge2 {[%clk
0:04:24.4]} 8... O-O {[%clk 0:04:47.2]} 9. O-O {[%clk 0:04:23.1]} 9... d5 {[%clk
0:04:45.7]} 10. exd5 {[%clk 0:04:08.5]} 10... cxd5 {[%clk 0:04:45.6]} 11. Re1
{[%clk 0:03:46.6]} 11... h6 {[%clk 0:04:26.3]} 12. Bf5 {[%clk 0:03:32.8]} 12...
Qa5 {[%clk 0:04:17.4]} 13. a3 {[%clk 0:03:18.9]} 13... d4 {[%clk 0:04:05.6]} 14.
b4 {[%clk 0:03:15.7]} 14... Qa6 {[%clk 0:03:58.1]} 15. Ne4 {[%clk 0:03:01.7]}
15... Nxe4 {[%clk 0:03:55.6]} 16. Bxe4 {[%clk 0:03:00.6]} 16... Rb8 {[%clk
0:03:54.2]} 17. Ng3 {[%clk 0:02:38.8]} 17... Nf6 {[%clk 0:03:52.2]} 18. Nf5
{[%clk 0:02:32.2]} 18... Bxf5 {[%clk 0:03:47.2]} 19. Bxf5 {[%clk 0:02:30.4]}
19... Qb6 {[%clk 0:03:47.1]} 20. Kh1 {[%clk 0:02:25.6]} 20... Bd6 {[%clk
0:03:45.7]} 21. Bb2 {[%clk 0:02:16.9]} 21... a5 {[%clk 0:03:43.5]} 22. Qd2
{[%clk 0:02:02.3]} 22... axb4 {[%clk 0:03:42.1]} 23. Qd3 {[%clk 0:01:49.8]}
23... bxa3 {[%clk 0:03:38.5]} 24. Bxa3 {[%clk 0:01:48.8]} 24... Bxa3 {[%clk
0:03:37.2]} 25. Rxa3 {[%clk 0:01:47.5]} 25... Qd6 {[%clk 0:03:29.5]} 26. Ra6
{[%clk 0:01:39.5]} 26... Qc5 {[%clk 0:03:24.5]} 27. Rxf6 {[%clk 0:01:25.1]}
27... gxf6 {[%clk 0:03:22.9]} 28. Bh7+ {[%clk 0:01:23.1]} 28... Kg7 {[%clk
0:03:17.9]} 29. f4 {[%clk 0:01:13.4]} 29... Rh8 {[%clk 0:03:12.8]} 30. Be4
{[%clk 0:01:05.3]} 30... Qc3 {[%clk 0:03:09.8]} 31. Qa6 {[%clk 0:00:42.7]} 31...
Qxe1+ {[%clk 0:03:02.1]} 32. Qf1 {[%clk 0:00:34.5]} 32... Qxf1# {[%clk
0:02:57.9]} 0-1

[Event "Live Chess"]
[Site "Chess.com"]
[Date "2023.05.21"]
[Round "-"]
[White "EdenHazard8"]
[Black "FunSingingHawk"]
[Result "1-0"]
[WhiteElo "1961"]
[BlackElo "1202"]
[TimeControl "300"]
[EndTime "0:14:06 PDT"]
[Termination "EdenHazard8 won on time"]

1. e4 {[%clk 0:04:56.5]} 1... e5 {[%clk 0:04:57.4]} 2. Nf3 {[%clk 0:04:38.6]}
2... Nc6 {[%clk 0:04:53.6]} 3. Bc4 {[%clk 0:04:37.8]} 3... Nf6 {[%clk
0:04:42.9]} 4. O-O {[%clk 0:04:30.8]} 4... Bc5 {[%clk 0:04:37.7]} 5. Re1 {[%clk
0:04:29.4]} 5... O-O {[%clk 0:04:34.6]} 6. d3 {[%clk 0:04:27.9]} 6... d6 {[%clk
0:04:24.9]} 7. Bg5 {[%clk 0:04:26.3]} 7... Bg4 {[%clk 0:04:18.3]} 8. Nbd2 {[%clk
0:04:24.7]} 8... Rc8 {[%clk 0:03:34.4]} 9. h3 {[%clk 0:04:18.9]} 9... Bh5 {[%clk
0:03:07.1]} 10. c3 {[%clk 0:04:16.4]} 10... b6 {[%clk 0:02:36.1]} 11. Nf1 {[%clk
0:04:01.1]} 11... h6 {[%clk 0:02:14.5]} 12. Bh4 {[%clk 0:03:55.4]} 12... Rb8
{[%clk 0:01:41.3]} 13. b4 {[%clk 0:03:33.8]} 13... g6 {[%clk 0:00:57.6]} 14.
bxc5 {[%clk 0:03:30.7]} 14... dxc5 {[%clk 0:00:55.5]} 15. Ne3 {[%clk 0:03:29.4]}
15... g5 {[%clk 0:00:16.4]} 16. Bg3 {[%clk 0:03:25.5]} 1-0

[Event "Live Chess"]
[Site "Chess.com"]
[Date "2023.05.21"]
[Round "-"]
[White "MaximKris"]
[Black "Nazar_777"]
[Result "1-0"]
[WhiteElo "1835"]
[BlackElo "1604"]
[TimeControl "300"]
[EndTime "0:14:07 PDT"]
[Termination "MaximKris won by checkmate"]

1. e4 {[%clk 0:04:57.7]} 1... e6 {[%clk 0:04:58.8]} 2. d4 {[%clk 0:04:53]} 2...
a6 {[%clk 0:04:58]} 3. Nf3 {[%clk 0:04:44.5]} 3... h5 {[%clk 0:04:56.9]} 4. Nc3
{[%clk 0:04:43.4]} 4... c5 {[%clk 0:04:55.8]} 5. d5 {[%clk 0:04:41.6]} 5... Nf6
{[%clk 0:04:54.5]} 6. e5 {[%clk 0:04:39.8]} 6... Ng4 {[%clk 0:04:53.4]} 7. d6
{[%clk 0:04:37.3]} 7... Nc6 {[%clk 0:04:50.5]} 8. Bg5 {[%clk 0:04:35.8]} 8...
Qb6 {[%clk 0:04:47.5]} 9. h3 {[%clk 0:04:23.6]} 9... Nh6 {[%clk 0:04:43.9]} 10.
a4 {[%clk 0:04:17.7]} 10... Qxb2 {[%clk 0:04:31.7]} 11. Ne4 {[%clk 0:04:13.2]}
11... Nxe5 {[%clk 0:04:26.4]} 12. Rb1 {[%clk 0:04:02.6]} 12... Nxf3+ {[%clk
0:04:23.1]} 13. gxf3 {[%clk 0:04:01.8]} 13... Qe5 {[%clk 0:04:20.1]} 14. Bc4
{[%clk 0:03:45]} 14... f5 {[%clk 0:04:17.6]} 15. O-O {[%clk 0:03:32.8]} 15...
fxe4 {[%clk 0:04:15.7]} 16. f4 {[%clk 0:03:32.3]} 16... Qd4 {[%clk 0:04:09.7]}
17. Qe2 {[%clk 0:03:28.2]} 17... Bxd6 {[%clk 0:03:51]} 18. Qxh5+ {[%clk
0:03:27]} 18... Kf8 {[%clk 0:03:36.5]} 19. Rbd1 {[%clk 0:03:06.8]} 19... Qxc4
{[%clk 0:03:32.4]} 20. Rxd6 {[%clk 0:03:04.3]} 20... b6 {[%clk 0:03:22.9]} 21.
Qg6 {[%clk 0:02:49.6]} 21... Nf7 {[%clk 0:03:02.7]} 22. Rfd1 {[%clk 0:02:16]}
22... e3 {[%clk 0:02:53.2]} 23. Rxd7 {[%clk 0:01:47.2]} 23... Bxd7 {[%clk
0:02:28.5]} 24. Rxd7 {[%clk 0:01:42]} 24... e5 {[%clk 0:02:23.7]} 25. fxe3
{[%clk 0:01:30.4]} 25... Rg8 {[%clk 0:02:07.8]} 26. Be7+ {[%clk 0:01:19.5]}
26... Ke8 {[%clk 0:02:04.1]} 27. Qc6 {[%clk 0:01:18.8]} 27... Qa2 {[%clk
0:00:49.2]} 28. Rc7# {[%clk 0:01:11.7]} 1-0

[Event "Live Chess"]
[Site "Chess.com"]
[Date "2023.05.21"]
[Round "-"]
[White "CroasArRheun"]
[Black "Singapourfeuj"]
[Result "0-1"]
[WhiteElo "1809"]
[BlackElo "2214"]
[TimeControl "300"]
[EndTime "0:14:16 PDT"]
[Termination "Singapourfeuj won by resignation"]

1. d4 {[%clk 0:04:59.1]} 1... Nf6 {[%clk 0:04:58.6]} 2. c4 {[%clk 0:04:58.7]}
2... g6 {[%clk 0:04:57.1]} 3. Nc3 {[%clk 0:04:58.3]} 3... Bg7 {[%clk 0:04:56.2]}
4. e4 {[%clk 0:04:58]} 4... d6 {[%clk 0:04:55.3]} 5. h3 {[%clk 0:04:57.7]} 5...
O-O {[%clk 0:04:54.2]} 6. Be3 {[%clk 0:04:56.7]} 6... e5 {[%clk 0:04:52.5]} 7.
d5 {[%clk 0:04:55.1]} 7... a5 {[%clk 0:04:51.8]} 8. Qd2 {[%clk 0:04:50.8]} 8...
c6 {[%clk 0:04:51.1]} 9. g4 {[%clk 0:04:49.7]} 9... cxd5 {[%clk 0:04:50]} 10.
cxd5 {[%clk 0:04:48.9]} 10... Na6 {[%clk 0:04:49.1]} 11. f3 {[%clk 0:04:48.2]}
11... Bd7 {[%clk 0:04:47.6]} 12. h4 {[%clk 0:04:47.6]} 12... Rb8 {[%clk
0:04:46]} 13. h5 {[%clk 0:04:46.9]} 13... b5 {[%clk 0:04:44.9]} 14. hxg6 {[%clk
0:04:43.1]} 14... fxg6 {[%clk 0:04:43.6]} 15. Bh6 {[%clk 0:04:42.5]} 15... Rf7
{[%clk 0:04:36.6]} 16. Bxg7 {[%clk 0:04:37]} 16... Rxg7 {[%clk 0:04:35.5]} 17.
Qh6 {[%clk 0:04:30.6]} 17... Nc5 {[%clk 0:04:32.5]} 18. Nge2 {[%clk 0:04:23.8]}
18... Nd3+ {[%clk 0:04:30.3]} 19. Kd2 {[%clk 0:04:21.1]} 19... Nxb2 {[%clk
0:04:28.9]} 20. g5 {[%clk 0:04:18.4]} 20... Nh5 {[%clk 0:04:24.6]} 21. Bh3
{[%clk 0:03:24.9]} 21... b4 {[%clk 0:04:20.2]} 22. Nd1 {[%clk 0:03:19.1]} 22...
Nc4+ {[%clk 0:04:18.4]} 23. Ke1 {[%clk 0:03:17.1]} 23... a4 {[%clk 0:04:13.5]}
24. Bg4 {[%clk 0:03:16.1]} 24... Nf4 {[%clk 0:04:09.6]} 25. Nxf4 {[%clk
0:03:11.1]} 25... exf4 {[%clk 0:04:08.7]} 26. Bh5 {[%clk 0:02:39.2]} 26... gxh5
{[%clk 0:04:05.1]} 27. g6 {[%clk 0:02:36]} 27... hxg6 {[%clk 0:04:01.2]} 28.
Qxf4 {[%clk 0:02:28.3]} 28... Qf8 {[%clk 0:03:54.3]} 0-1

[Event "Live Chess"]
[Site "Chess.com"]
[Date "2023.05.21"]
[Round "-"]
[White "nigelst"]
[Black "Biranidun"]
[Result "0-1"]
[WhiteElo "1698"]
[BlackElo "2553"]
[TimeControl "300"]
[EndTime "0:14:27 PDT"]
[Termination "Biranidun won by checkmate"]

1. e4 {[%clk 0:04:58.4]} 1... c5 {[%clk 0:04:58.9]} 2. Nf3 {[%clk 0:04:57.1]}
2... d6 {[%clk 0:04:58.4]} 3. Bb5+ {[%clk 0:04:55.6]} 3... Nd7 {[%clk
0:04:56.9]} 4. Ba4 {[%clk 0:04:53.4]} 4... Nf6 {[%clk 0:04:55.6]} 5. Qe2 {[%clk
0:04:51.7]} 5... a6 {[%clk 0:04:54]} 6. c3 {[%clk 0:04:49.9]} 6... b5 {[%clk
0:04:53.4]} 7. Bc2 {[%clk 0:04:48.3]} 7... e6 {[%clk 0:04:52.9]} 8. O-O {[%clk
0:04:47]} 8... Be7 {[%clk 0:04:52.1]} 9. d4 {[%clk 0:04:43.3]} 9... Bb7 {[%clk
0:04:51.3]} 10. e5 {[%clk 0:04:39.2]} 10... Nd5 {[%clk 0:04:50.2]} 11. exd6
{[%clk 0:04:37.7]} 11... Bxd6 {[%clk 0:04:49.4]} 12. Bg5 {[%clk 0:04:33.8]}
12... Qc7 {[%clk 0:04:48.1]} 13. Bh4 {[%clk 0:04:30.6]} 13... Nf4 {[%clk
0:04:46.2]} 14. Qd2 {[%clk 0:04:22.6]} 14... g5 {[%clk 0:04:42.1]} 15. Bg3
{[%clk 0:04:20.4]} 15... h5 {[%clk 0:04:39.1]} 16. Nxg5 {[%clk 0:04:11.9]} 16...
h4 {[%clk 0:04:37.8]} 17. dxc5 {[%clk 0:03:51.5]} 17... hxg3 {[%clk 0:04:34.8]}
18. cxd6 {[%clk 0:03:46.9]} 18... gxh2+ {[%clk 0:04:33.7]} 19. Kh1 {[%clk
0:03:45.8]} 19... Bxg2# {[%clk 0:04:33.6]} 0-1

[Event "Live Chess"]
[Site "Chess.com"]
[Date "2023.05.21"]
[Round "-"]
[White "yarek"]
[Black "ChessClubLive"]
[Result "1-0"]
[WhiteElo "1872"]
[BlackElo "1840"]
[TimeControl "300"]
[EndTime "0:14:32 PDT"]
[Termination "yarek won by resignation"]

1. e4 {[%clk 0:04:56.3]} 1... c5 {[%clk 0:04:58.2]} 2. d4 {[%clk 0:04:54]} 2...
cxd4 {[%clk 0:04:56.8]} 3. c3 {[%clk 0:04:51.8]} 3... dxc3 {[%clk 0:04:54.1]} 4.
Nxc3 {[%clk 0:04:51.1]} 4... e6 {[%clk 0:04:52.8]} 5. Bc4 {[%clk 0:04:50.5]}
5... Bb4 {[%clk 0:04:52]} 6. Nf3 {[%clk 0:04:48.2]} 6... Qc7 {[%clk 0:04:47.5]}
7. Qe2 {[%clk 0:04:43.5]} 7... Nf6 {[%clk 0:04:36.4]} 8. O-O {[%clk 0:04:38.8]}
8... Nc6 {[%clk 0:04:31.9]} 9. e5 {[%clk 0:04:29.3]} 9... Bxc3 {[%clk
0:04:22.8]} 10. bxc3 {[%clk 0:04:24.2]} 10... Ng4 {[%clk 0:04:03.4]} 11. Bf4
{[%clk 0:04:14.1]} 11... f6 {[%clk 0:03:50.5]} 12. h3 {[%clk 0:03:58.5]} 12...
Ngxe5 {[%clk 0:03:48.9]} 13. Bb3 {[%clk 0:03:25.3]} 13... Nxf3+ {[%clk
0:03:47.2]} 14. Qxf3 {[%clk 0:03:22.4]} 14... e5 {[%clk 0:03:32.4]} 15. Rfe1
{[%clk 0:03:18.4]} 15... d6 {[%clk 0:03:24]} 16. Bg3 {[%clk 0:02:52.7]} 16...
Bd7 {[%clk 0:03:20.8]} 17. Rab1 {[%clk 0:02:13.9]} 17... O-O-O {[%clk
0:03:15.3]} 18. Qe3 {[%clk 0:01:58]} 18... f5 {[%clk 0:03:08.6]} 19. Bh4 {[%clk
0:01:50.6]} 19... f4 {[%clk 0:03:03.4]} 20. Qd3 {[%clk 0:01:34.2]} 20... g5
{[%clk 0:02:38.6]} 21. Bxg5 {[%clk 0:01:30.2]} 21... Rdg8 {[%clk 0:02:34.6]} 22.
Bxg8 {[%clk 0:01:27.6]} 22... Rxg8 {[%clk 0:02:33.3]} 23. h4 {[%clk 0:01:23.2]}
23... h6 {[%clk 0:02:30.3]} 24. Bxh6 {[%clk 0:01:20.3]} 24... Be6 {[%clk
0:02:17.2]} 25. a4 {[%clk 0:01:14.4]} 25... Qe7 {[%clk 0:02:07.1]} 26. Bg5
{[%clk 0:01:11.9]} 26... Qd7 {[%clk 0:01:39.9]} 27. c4 {[%clk 0:01:07.8]} 27...
Bf5 {[%clk 0:01:38.9]} 28. Qd5 {[%clk 0:01:03.2]} 28... Bxb1 {[%clk 0:01:36.8]}
29. Qxg8+ {[%clk 0:01:01]} 1-0

[Event "Live Chess"]
[Site "Chess.com"]
[Date "2023.05.21"]
[Round "-"]
[White "f4nomore"]
[Black "tpm07"]
[Result "0-1"]
[WhiteElo "1416"]
[BlackElo "1925"]
[TimeControl "300"]
[EndTime "0:14:35 PDT"]
[Termination "tpm07 won by resignation"]

1. d4 {[%clk 0:04:58.1]} 1... Nf6 {[%clk 0:04:58.1]} 2. Bg5 {[%clk 0:04:55.6]}
2... Ne4 {[%clk 0:04:49.5]} 3. Bh4 {[%clk 0:04:53.9]} 3... g5 {[%clk 0:04:46.6]}
4. Bg3 {[%clk 0:04:48.5]} 4... h5 {[%clk 0:04:44.5]} 5. f3 {[%clk 0:04:40.9]}
5... Nxg3 {[%clk 0:04:39.7]} 6. hxg3 {[%clk 0:04:37.9]} 6... d5 {[%clk
0:04:35.6]} 7. Nc3 {[%clk 0:04:36.5]} 7... Bg7 {[%clk 0:04:25.8]} 8. Qd3 {[%clk
0:04:34.5]} 8... Nc6 {[%clk 0:04:16.6]} 9. e3 {[%clk 0:04:27.8]} 9... Be6 {[%clk
0:04:06.3]} 10. O-O-O {[%clk 0:04:22.8]} 10... Qd7 {[%clk 0:04:05.2]} 11. Nge2
{[%clk 0:04:16.5]} 11... Bf5 {[%clk 0:03:54.6]} 12. Qb5 {[%clk 0:04:12.3]} 12...
O-O-O {[%clk 0:03:50.2]} 13. e4 {[%clk 0:03:55.5]} 13... dxe4 {[%clk 0:03:47]}
14. fxe4 {[%clk 0:03:47.2]} 14... Bg4 {[%clk 0:03:42.7]} 15. Kb1 {[%clk
0:03:33.6]} 15... Nxd4 {[%clk 0:03:04.1]} 16. Rxd4 {[%clk 0:03:23.7]} 16... Bxd4
{[%clk 0:02:53.9]} 17. Qxg5 {[%clk 0:02:57.1]} 17... Bf6 {[%clk 0:02:18]} 18.
Qa5 {[%clk 0:02:48.4]} 18... Bxc3 {[%clk 0:02:08]} 19. Nxc3 {[%clk 0:02:42.6]}
19... Qd1+ {[%clk 0:02:02.7]} 0-1

[Event "Live Chess"]
[Site "Chess.com"]
[Date "2023.05.21"]
[Round "-"]
[White "mattihelenius2"]
[Black "Geomorph"]
[Result "0-1"]
[WhiteElo "489"]
[BlackElo "1272"]
[TimeControl "300"]
[EndTime "0:14:55 PDT"]
[Termination "Geomorph won by resignation"]

1. d4 {[%clk 0:04:57.3]} 1... d5 {[%clk 0:04:58.5]} 2. c4 {[%clk 0:04:52.7]}
2... c6 {[%clk 0:04:57.5]} 3. Nc3 {[%clk 0:04:39]} 3... Nf6 {[%clk 0:04:51.8]}
4. Nf3 {[%clk 0:04:35.2]} 4... Bf5 {[%clk 0:04:50.5]} 5. Bg5 {[%clk 0:04:34]}
5... Qb6 {[%clk 0:04:48.9]} 6. Qb3 {[%clk 0:04:30.3]} 6... dxc4 {[%clk
0:04:39.8]} 7. Qxb6 {[%clk 0:04:11.8]} 7... axb6 {[%clk 0:04:38.6]} 8. Bxf6
{[%clk 0:04:11]} 8... gxf6 {[%clk 0:04:33]} 9. e3 {[%clk 0:04:09.4]} 9... b5
{[%clk 0:04:26.7]} 10. Rd1 {[%clk 0:03:59.3]} 10... Nd7 {[%clk 0:04:03.4]} 11.
g3 {[%clk 0:03:48.9]} 11... Bg7 {[%clk 0:03:54.7]} 12. e4 {[%clk 0:03:38.6]}
12... Bg6 {[%clk 0:03:50.1]} 13. Bh3 {[%clk 0:03:23.6]} 13... b4 {[%clk
0:03:34.1]} 14. Na4 {[%clk 0:03:11.2]} 14... Rxa4 {[%clk 0:03:30]} 15. Ra1
{[%clk 0:03:01.6]} 15... Bxe4 {[%clk 0:03:27.6]} 16. Bxd7+ {[%clk 0:02:54]}
16... Kxd7 {[%clk 0:03:25.7]} 17. Ke2 {[%clk 0:02:52.3]} 17... Bxf3+ {[%clk
0:03:21.7]} 18. Kxf3 {[%clk 0:02:51.2]} 18... f5 {[%clk 0:03:21.3]} 19. b3
{[%clk 0:02:48]} 19... cxb3 {[%clk 0:03:18.6]} 20. a3 {[%clk 0:02:40.5]} 20...
bxa3 {[%clk 0:03:14.8]} 21. Ke3 {[%clk 0:02:34.4]} 21... Bxd4+ {[%clk
0:03:13.5]} 22. Kd3 {[%clk 0:02:33]} 22... Bxa1 {[%clk 0:03:12.4]} 0-1

[Event "Live Chess"]
[Site "Chess.com"]
[Date "2023.05.21"]
[Round "-"]
[White "Bot_Boy"]
[Black "Vitalii18a"]
[Result "0-1"]
[WhiteElo "324"]
[BlackElo "1106"]
[TimeControl "300"]
[EndTime "0:15:09 PDT"]
[Termination "Vitalii18a won on time"]

1. e4 {[%clk 0:04:56.7]} 1... e5 {[%clk 0:04:58.6]} 2. Nf3 {[%clk 0:04:54.9]}
2... d6 {[%clk 0:04:57.1]} 3. Bc4 {[%clk 0:04:52.4]} 3... Nf6 {[%clk 0:04:51.8]}
4. Nc3 {[%clk 0:04:49.5]} 4... c6 {[%clk 0:04:50]} 5. d4 {[%clk 0:04:43.7]} 5...
exd4 {[%clk 0:04:44.9]} 6. Qxd4 {[%clk 0:04:29.1]} 6... Be7 {[%clk 0:04:42.1]}
7. Ng5 {[%clk 0:04:16.5]} 7... O-O {[%clk 0:04:34.6]} 8. Qd1 {[%clk 0:03:29]}
8... h6 {[%clk 0:04:31]} 9. Nh3 {[%clk 0:03:01.9]} 9... Na6 {[%clk 0:04:22.5]}
10. Rg1 {[%clk 0:02:40.7]} 10... Be6 {[%clk 0:04:10.1]} 11. Bxe6 {[%clk
0:02:23.4]} 11... fxe6 {[%clk 0:04:07.9]} 12. g4 {[%clk 0:02:08.7]} 12... Nc5
{[%clk 0:04:01.2]} 13. f3 {[%clk 0:01:54]} 13... Re8 {[%clk 0:03:54.9]} 14. g5
{[%clk 0:01:43.2]} 14... hxg5 {[%clk 0:03:50.4]} 15. Nxg5 {[%clk 0:01:23.2]}
15... Nh5 {[%clk 0:03:48]} 16. f4 {[%clk 0:01:03.4]} 16... Bxg5 {[%clk 0:03:45]}
17. Qxh5 {[%clk 0:00:40.8]} 17... Bh6 {[%clk 0:03:33.6]} 18. f5 {[%clk
0:00:26.1]} 18... exf5 {[%clk 0:03:31.5]} 19. Bxh6 {[%clk 0:00:18.7]} 19... Re7
{[%clk 0:03:27.2]} 20. Rxg7+ {[%clk 0:00:10.8]} 20... Rxg7 {[%clk 0:03:25.5]}
21. Bxg7 {[%clk 0:00:08.4]} 21... Kxg7 {[%clk 0:03:24.2]} 22. exf5 {[%clk
0:00:04.5]} 22... Qe7+ {[%clk 0:03:19.4]} 23. Ne2 {[%clk 0:00:01.6]} 23... Re8
{[%clk 0:03:15.4]} 0-1

[Event "Live Chess"]
[Site "Chess.com"]
[Date "2023.05.21"]
[Round "-"]
[White "Jo1ts"]
[Black "DaveL5678"]
[Result "0-1"]
[WhiteElo "822"]
[BlackElo "1010"]
[TimeControl "300"]
[EndTime "0:15:22 PDT"]
[Termination "DaveL5678 won by resignation"]

1. d4 {[%clk 0:04:57.7]} 1... Nf6 {[%clk 0:04:55.6]} 2. Bf4 {[%clk 0:04:57.1]}
2... g6 {[%clk 0:04:48.5]} 3. e3 {[%clk 0:04:56.3]} 3... d6 {[%clk 0:04:46.1]}
4. Nf3 {[%clk 0:04:55.8]} 4... Bg7 {[%clk 0:04:43.8]} 5. Nbd2 {[%clk 0:04:55.3]}
5... Bf5 {[%clk 0:04:38.4]} 6. Bd3 {[%clk 0:04:54.5]} 6... Bxd3 {[%clk 0:04:35]}
7. cxd3 {[%clk 0:04:54.4]} 7... Qd7 {[%clk 0:04:31.1]} 8. e4 {[%clk 0:04:50.7]}
8... Qb5 {[%clk 0:04:25.7]} 9. Nc4 {[%clk 0:04:41.9]} 9... d5 {[%clk 0:04:18.9]}
10. exd5 {[%clk 0:04:39.3]} 10... Nxd5 {[%clk 0:04:16.6]} 11. O-O {[%clk
0:04:34.1]} 11... Nxf4 {[%clk 0:04:13.4]} 0-1

[Event "Live Chess"]
[Site "Chess.com"]
[Date "2023.05.21"]
[Round "-"]
[White "rmethornhill"]
[Black "Shepherds_Pie"]
[Result "0-1"]
[WhiteElo "1156"]
[BlackElo "1920"]
[TimeControl "300"]
[EndTime "0:15:51 PDT"]
[Termination "Shepherds_Pie won by resignation"]

1. d4 {[%clk 0:04:57.4]} 1... d5 {[%clk 0:04:58.7]} 2. c4 {[%clk 0:04:56.6]}
2... e6 {[%clk 0:04:57.4]} 3. Nc3 {[%clk 0:04:54.3]} 3... c5 {[%clk 0:04:56.5]}
4. Nf3 {[%clk 0:04:52.5]} 4... cxd4 {[%clk 0:04:55.2]} 5. Nxd4 {[%clk
0:04:51.7]} 5... e5 {[%clk 0:04:54.2]} 6. Nf3 {[%clk 0:04:50.1]} 6... d4 {[%clk
0:04:52.4]} 7. Ne4 {[%clk 0:04:48.1]} 7... Nc6 {[%clk 0:04:50]} 8. e3 {[%clk
0:04:45.6]} 8... f5 {[%clk 0:04:47.5]} 9. Ng3 {[%clk 0:04:32.3]} 9... e4 {[%clk
0:04:44.5]} 10. Ng1 {[%clk 0:04:24.6]} 10... d3 {[%clk 0:04:41.3]} 11. Qh5+
{[%clk 0:04:19.4]} 11... g6 {[%clk 0:04:39.1]} 12. Qd1 {[%clk 0:04:10.7]} 12...
Nf6 {[%clk 0:04:37]} 13. h4 {[%clk 0:04:06.9]} 13... h5 {[%clk 0:04:34.8]} 14.
f3 {[%clk 0:04:01.2]} 14... Bg7 {[%clk 0:04:33]} 15. fxe4 {[%clk 0:03:55.4]}
15... fxe4 {[%clk 0:04:31.8]} 16. Rb1 {[%clk 0:03:29.7]} 16... Bg4 {[%clk
0:04:29.1]} 17. Be2 {[%clk 0:03:26.9]} 17... dxe2 {[%clk 0:04:26.3]} 18. N1xe2
{[%clk 0:03:25.3]} 18... O-O {[%clk 0:04:21.3]} 19. Qb3 {[%clk 0:03:17.3]} 19...
Na5 {[%clk 0:04:11.1]} 20. Qb5 {[%clk 0:03:05.8]} 20... a6 {[%clk 0:04:06.6]}
21. Qa4 {[%clk 0:03:03.6]} 21... b5 {[%clk 0:03:58.5]} 22. cxb5 {[%clk 0:03:02]}
22... axb5 {[%clk 0:03:57.5]} 23. Qd4 {[%clk 0:02:59.1]} 23... Qxd4 {[%clk
0:03:53]} 24. Nxd4 {[%clk 0:02:56.4]} 24... Nc4 {[%clk 0:03:46.2]} 25. Nxb5
{[%clk 0:02:48.3]} 25... Ne5 {[%clk 0:03:44.1]} 26. Nd4 {[%clk 0:02:35.2]} 26...
Nd3+ {[%clk 0:03:38.6]} 27. Kf1 {[%clk 0:02:33.2]} 27... Rxa2 {[%clk 0:03:36.7]}
28. Ne6 {[%clk 0:02:21.2]} 0-1